{"text_format":"1","workbook":"xlsx","n_sheets":3,"sheets":["Sectiunile A-C","Buget indicativ si Anexe","Sectiunile D-F"],"not_rendered":{"charts":0,"images":39,"macros":1,"external_links":0,"defined_names":0,"comments":0,"pivot_tables":0},"unopened":[],"bounds":{"document_bytes":16777216,"sheet_cells":100000,"rows_first":2000,"rows_last":500,"rows_between":2000,"halvings":0,"cell_chars":16384,"cell_head_chars":4096},"cells_cut":0,"cells_raw":0,"read":"whole","date_system":"1900"}

{"sheet":"Sectiunile A-C","index":0,"n_rows":238,"n_cols":9,"rows_kept":238,"cut":false,"hidden":false,"merged":[[229,0,229,8],[230,0,230,8],[231,0,231,8],[232,0,232,8],[233,0,233,8],[234,0,234,8],[235,0,235,8],[236,0,236,8],[237,0,237,8],[115,0,115,5],[116,0,116,3],[118,0,118,2],[88,5,88,7],[2,0,2,8],[55,4,55,5],[58,4,58,5],[64,4,64,5],[70,4,70,5],[76,4,76,5],[25,0,25,8],[26,0,26,8],[27,0,27,8],[68,0,72,1],[103,0,103,3],[74,0,78,1],[76,7,76,8],[40,0,42,8],[62,0,66,1],[70,7,70,8],[44,0,50,8],[80,0,84,1],[56,0,60,1],[58,7,58,8],[53,0,53,1],[53,2,53,4],[82,4,82,5],[87,1,87,2],[87,5,87,7],[55,7,55,8],[36,0,36,2],[18,0,18,2],[53,7,53,8],[29,0,29,8],[28,0,28,8],[39,0,39,1],[64,7,64,8],[37,0,38,8],[0,0,0,8],[3,6,3,8],[5,6,5,8],[5,0,5,5],[51,0,51,2],[12,0,12,1],[12,2,12,4],[19,0,19,8],[6,6,6,8],[7,6,7,8],[9,6,9,8],[6,0,6,5],[7,0,7,5],[10,6,10,8],[10,1,10,5],[21,1,21,8],[24,0,24,1],[13,0,13,4],[15,0,15,1],[17,0,17,4],[11,6,17,8],[9,1,9,5],[109,0,109,2],[110,0,110,1],[110,2,111,8],[112,0,113,2],[112,5,112,8],[114,0,114,2],[114,5,114,8],[82,7,82,8],[85,0,85,3],[104,2,105,8],[108,0,108,2],[108,5,108,8],[104,0,104,1],[106,0,107,2],[106,5,106,8],[124,0,124,2],[124,6,124,7],[124,3,124,4],[119,0,119,1],[119,2,119,6],[119,7,119,8],[120,0,120,1],[120,3,120,5],[120,7,120,8],[122,0,122,5],[131,0,131,1],[132,0,132,1],[137,0,137,1],[138,0,138,1],[138,3,138,4],[138,6,138,8],[132,3,132,6],[126,0,126,7],[128,2,128,3],[129,0,129,1],[129,3,129,4],[129,6,129,8],[150,0,150,1],[150,5,150,7],[152,0,152,2],[152,6,152,7],[153,6,154,7],[153,5,154,5],[153,4,154,4],[153,3,154,3],[140,0,140,8],[143,0,143,1],[143,2,143,3],[143,7,143,8],[143,5,143,6],[153,8,154,8],[146,0,146,8],[147,0,147,7],[149,0,149,1],[149,5,149,7],[141,0,142,1],[141,2,142,3],[141,4,142,4],[141,5,142,6],[141,7,142,8],[164,0,164,1],[164,3,164,4],[165,0,165,1],[165,3,165,4],[165,7,165,8],[156,0,156,7],[159,0,159,1],[159,3,159,5],[159,7,159,8],[162,2,162,3],[176,0,176,8],[177,0,178,8],[180,0,180,3],[180,5,180,8],[181,0,182,3],[181,5,182,8],[167,1,167,4],[170,0,170,7],[172,0,172,3],[172,5,172,8],[173,0,174,3],[173,5,174,8],[186,0,186,8],[187,0,187,8],[190,0,192,1],[190,2,190,7],[191,2,192,2],[191,7,192,7],[191,6,192,6],[191,3,192,5],[190,8,192,8],[193,0,195,1],[202,0,204,1],[205,0,207,1],[193,8,201,8],[202,8,204,8],[205,8,207,8],[193,2,195,2],[193,3,195,5],[196,3,198,5],[199,3,201,5],[199,6,201,6],[199,7,201,7],[196,6,198,6],[196,7,198,7],[196,0,198,1],[199,0,201,1],[193,6,195,6],[193,7,195,7],[208,0,210,1],[211,0,213,1],[214,0,216,1],[217,0,219,1],[220,0,222,1],[223,0,225,1],[223,2,225,2],[220,2,222,2],[217,2,219,2],[220,3,222,5],[208,2,210,2],[205,2,207,2],[202,2,204,2],[199,2,201,2],[196,2,198,2],[208,8,216,8],[214,2,216,2],[211,2,213,2],[202,3,204,5],[205,3,207,5],[217,8,225,8],[227,0,227,6],[122,6,122,8],[1,0,1,8],[208,6,210,6],[208,7,210,7],[205,6,207,6],[205,7,207,7],[202,6,204,6],[202,7,204,7],[217,6,219,6],[217,7,219,7],[214,6,216,6],[214,7,216,7],[211,6,213,6],[211,7,213,7],[223,3,225,5],[223,6,225,6],[223,7,225,7],[220,6,222,6],[220,7,222,7],[208,3,210,5],[211,3,213,5],[214,3,216,5],[217,3,219,5]]}
["MINISTERUL AGRICULTURII ŞI DEZVOLTĂRII RURALE\nAGENŢIA PENTRU FINANŢAREA INVESTIŢIILOR RURALE                       "]
[" ASOCIATIA GRUPUL DE ACȚIUNE LOCALĂ CONFLUENȚE MOLDAVE . Sesiunea nr.1 / Apel de selectie nr. 1/ august 2017"]
["Cererea de Finantare - M4/6B (actiuni corespondente sub-masurii 7.6) - Versiunea 01"]
[null,null,null,null,null,null,"SECŢIUNE GENERALĂ"]
[]
["DATE DE ÎNREGISTRARE",null,null,null,null,null,"NUME ŞI PRENUME DIRECTOR GENERAL ADJUNCT CRFIR"]
["Se completează de către Agenția pentru Finanțarea Investițiilor Rurale "]
["Centrul Regional- Programul FEADR 2014-2020"]
[]
["CRFIR",null,null,null,null,null,"Semnătura Director General Adjunct CRFIR\n\n\n"]
["Număr\ninregistrare",null,null,null,null,null,"Ştampila CRFIR"]
[]
["Data Înregistrării"]
["Numele şi prenumele persoanei care înregistrează: "]
[]
["Semnătura:"]
[]
["Data primirii cererii de finanţare la contractare:"]
["Se completează de către solicitant"]
["A. PREZENTARE GENERALĂ"]
[]
["A1 Măsura"]
[]
[]
["Tip investitie:"]
[]
[]
[]
[]
[]
[]
[]
[]
["Conţinutul cadru al documentaţiei tehnico-economice faza SF/DALI conform : "]
[]
[]
["A2 Denumire solicitant:"]
[]
[]
["A3 Titlu proiect:"]
[]
[]
[]
["A4 Descrierea succintă a proiectului:"]
[]
[]
[]
[]
[]
[]
[]
["A5 Amplasarea proiectului:"]
[]
["Regiunea de dezvoltare:",null,null,null,null,null,"Judet"]
[]
["Obiectivele investiţiei",null,null,"Judet","Comuna/Oras",null,"Sat","Sat"]
[]
[]
[]
[]
[]
[]
[]
[]
[]
[]
[]
[]
[]
[]
[]
[]
[]
[]
[]
[]
[]
[]
[]
[]
[]
[]
[]
[]
[]
["A6 Date despre tipul de proiect şi beneficiar:\n \n\n \nA6 Date despre tipul de proiect şi beneficiar:\n \n"]
["A 6.1",null,null,null,"A 6.2"]
[]
[]
["A 6.3"]
[]
[]
[]
[]
[]
[]
[]
["A 6.4 Prescorare"]
[]
["A 6.4.1 Detaliere critetii de selectie indeplinite"]
[]
[]
[]
["A7 Date despre consultant:"]
["Denumire:"]
[]
["      Cod Unic de Înregistrare / Codul de Înregistrare Fiscală",null,null,null,null,"Număr de înregistrare în registrul comerțului"]
[]
[]
["A8 Date despre proiectant:"]
["Denumire:"]
[]
[" Cod Unic de Înregistrare / Codul de Înregistrare Fiscală",null,null,null,null,"Număr de înregistrare în registrul comerțului"]
[]
[]
["B INFORMAŢII PRIVIND SOLICITANTUL"]
["B1 Descrierea solicitantului"]
[]
["B1.1 Informaţii privind solicitantul"]
["Data înființării",null,"Cod Unic de Înregistrare și/sau Codul de Înregistrare Fiscală",null,null,null,null,"Statut juridic al solicitantului"]
[]
[]
["Număr de înregistrare în registrul comerțului/Registrul asociatiilor si fundatiilor"]
[]
["* Codul unic de înregistrare APIA",null,null,null,null,null,"Anul atribuirii codului"]
[]
["B1.2 Sediul social / Domiciliul stabil al solicitantului / Reşedinţa din România"]
[]
["Judetul",null,"            Localitate",null,null,null,"Sat"]
[]
[]
["Cod poştal",null,null,"Strada",null,null,null,null,"Nr."]
[]
[]
["Bloc",null,"Scara"]
[]
[]
["Telefon fix / mobil",null,null,"Fax",null,null,"Email"]
[]
[]
["B1.3 Numele şi prenumele reprezentantului legal şi funcţia acestuia în cadrul organizaţiei, precum şi specimenul de semnătură:"]
["Nume",null,"Prenume",null,"Functie","           Reprezentant legal",null,"Specimen de semnatura"]
[]
[null,null,null,null,null,"LEGAL"]
[]
[]
["B2 Informaţii referitoare la reprezentantul legal de proiect"]
["B2.1 Date de identitate ale reprezentantului legal de proiect"]
[]
["Data nasterii",null,null,null,null,"Codul numeric personal"]
[]
[]
["Act de identitate",null,null,"Seria:","Numarul","Eliberat la data de:","de:",null,"Valabil pana la:"]
["BI","CI","Pasaport"]
[]
[]
["B2.2 Domiciliul stabil al reprezentantului legal de proiect"]
[]
["Judet",null,null,"Localitate",null,null,null,"Sat"]
[]
[]
["Cod postal",null,"Strada",null,"Nr.",null,"Bloc","Scara","Ap."]
[]
[]
["Telefon fix",null,null,"Telefon mobil",null,null,null,"Fax"]
[]
[null,"Email:"]
[]
[]
[]
["B3 Informaţii privind contul bancar pentru proiect FEADR"]
[]
["B3.1 Denumirea Băncii",null,null,null,null,"Denumirea Sucursalei/Filialei"]
[]
[]
[]
["B3.2 Adresa Băncii/Sucursalei"]
[]
[]
[]
["B3.3 Cod IBAN",null,null,null,null,"B3.4 Titularul contului bancar"]
[]
[]
[]
[]
[]
["C FINANȚĂRI NERAMBURSABILE OBȚINUTE, SAU SOLICITATE ?"]
["Dacă au fost obținute finanțări nerambursabile sau au fost solicitate și au fost obținute parțial, se vor detalia prin completarea tabelului de mai jos."]
[]
[]
["DENUMIRE PROGRAM\nFINANȚARE ",null,"DA",null,null,null,null,null,"NU"]
[null,null,"Numar proiecte","Titlul Proiectui și numărul contractului de finanțare",null,null,"Data finalizării ll/zz/aaaa","Valoarea sprijinului (EURO)"]
[]
["Program National *"]
[]
[]
["Program National *"]
[]
[]
["Program National *"]
[]
[]
["SAPARD"]
[]
[]
["FEADR"]
[]
[]
["Alte programe europene *"]
[]
[]
["Alte programe europene *"]
[]
[]
["Alte programe europene *"]
[]
[]
["Alte programe internationale*"]
[]
[]
["Alte programe internationale*"]
[]
[]
["Alte programe internationale*"]
[]
[]
[]
["* se completează de către solicitant cu denumirea programului"]
["                                REGULI DE COMPLETARE\n\n                                                                                                                                                                                                         Câmpurile \"Numele şi prenumele persoanei care înregistrează. Semnătura\", se vor completa după data primirii în format tipărit a acesteia împreună cu documentele justificative.\n\nCompletati devizele aferente capitolelor de cheltuieli, defalcat pe cheltuieli eligibile si neeligibile prin completarea tabelelor incluse in acest document, respectiv :\n\n1. Tabelul \"Deviz financiar_cap3\" cuprinde cheltuielile aferente capitolului 3 - Cheltuieli pentru proiectare si asistenta tehnica, cheltuieli care trebuie sa se regaseasca atat in Bugetul Indicativ (Tabel \"Buget indicativ\" din cererea de finantare, partea specifica), cat si in Dezivul General din Studiul de Fezabilitate/Documentatia de avizare a Lucrarilor pentru Interventii.\n\n2. Tabelul \"Devize obiect\" cuprinde formatul cadru al devizului pe obiect, iar solicitantul va completa atatea devize pe obiect cate obiecte definite de proiectant sunt incluse in proiect. Suma tuturor devizelor pe obiect trebuie sa se regaseasca atat in Bugetul Indicativ (tabelul \"Buget indicativ\" din cererea de finantare, partea specifica), cat si in Dezivul General din Studiul de Fezabilitate/Documentatia de avizare a Lucrarilor pentru Interventii\nIn cazul in care proiectul de investitii presupune mai multe devize pe obiect, solicitantul va crea in documentul curent cate o copie a tabelului \"Devize obiect\" pentru fiecare deviz pe obiect si va detalia cheltuielile eligibile si neeligibile pe fiecare in parte.\n\n3. Tabelul \"cap.2+cap.5\" cuprinde cheltuieli aferente capitolelor 2 si 5 si trebuie sa se regaseasca atat in Bugetul Indicativ (tabel \"Buget indicativ\" din cererea de finantare, partea specifica), cat si Dezivul General din Studiul de Fezabilitate/Documentatia de avizare a Lucrarilor pentru Interventii.\n\n\n\n4. Pentru proiectele care vizeaza 2 componente in urmatoarele variante:\n• Modernizare o componenta/extindere componenta complementara\n• Infiintare o componenta/extindere componenta complementara\n• Infiintare o componenta/modernizare componenta complementara\n• Modernizare o componenta/modernizare componenta complementara\nLa punctul A6.1 se vor considera lucrari de interventie .\n\n5. Pentru proiectele care vizeaza 2 componente, ambele extindere, la punctul A6.1 se va considera investitie noua .\n\n\n\n\nDocumentele (3.1, 3.2, 3.3, 5, 7.2, 7.2.1, 11.1, 11.2, 12, 14.1, 14.2, 14.3, 14.4, 15, 20) de pe coloana DEPUNERE - Obligatoriu daca proiectul o impune\", din sectiunea E – Lista documentelor anexate - trebuie bifate şi anexate daca proiectul o impune.\n\nTrebuie bifate si anexate toate documentele (1, 2.1, 6, 7.1, 13, 16) de pe coloana “DEPUNERE - Obligatoriu pentru toate proiectele” din sectiunea E – Lista documentelor anexate.\n\n\n\n\n\n"]
["REGULI DE COMPLETARE"]
["Completaţi devizele aferente capitolelor de cheltuieli, defalcat pe cheltuieli eligibile şi neeligibile prin completarea tabelelor incluse în acest document, respectiv :"]
["1. Tabelul \"Deviz financiar_cap3\" cuprinde cheltuielile aferente capitolului 3 - Cheltuieli pentru proiectare şi asistenţă tehnică, cheltuieli care trebuie să se regăsească atât în Bugetul Indicativ (Tabel \"Buget indicativ\" din cererea de finanţare, partea specifică) cât şi în Devizul General din Studiul de Fezabilitate/Documentatia de avizare a Lucrarilor pentru Interventii."]
["2. Tabelul \"Devize obiect\" cuprinde formatul cadru al devizului pe obiect, iar solicitantul va completa atâtea devize pe obiect câte obiecte definite de proiectant, sunt incluse în proiect. Suma tuturor devizelor pe obiect trebuie să se regăseasca atât în Bugetul Indicativ (tabelul \"Buget indicativ\" din cererea de finanţare, partea specifică), cât şi în Devizul General din Studiul de Fezabilitate/Documentatia de avizare a Lucrarilor pentru Interventii."]
["În cazul în care proiectul de investiţii presupune mai multe devize pe obiect, solicitantul va crea în documentul curent câte o copie a tabelului \"Devize obiect\" pentru fiecare deviz pe obiect şi va detalia cheltuielile eligibile şi neeligibile pe fiecare în parte."]
["3. Tabelul \"cap.2+cap.5\" cuprinde cheltuieli aferente capitolelor 2 şi 5 şi trebuie să se regăsească atât în Bugetul Indicativ (tabel \"Buget indicativ\" din cererea de finanţare, partea specifică), cât şi Devizul General din Studiul de Fezabilitate/Documentatia de avizare a Lucrarilor pentru Interventii."]
["4. Câmpurile \"Prescorare\" şi \"Detaliere criterii de selecţie îndeplinite\" de la sectiunea A6 sunt obligatorii."]
["Trebuie bifate si anexate toate documentele (6.1, 10 şi 18) de pe coloana “DEPUNERE - Obligatoriu pentru toate proiectele” din sectiunea E – Lista documentelor anexate."]
["Documentele (1.1, 1.2, 2, 3.1, 3.2, 5.1, 5.2, 6.2, 6.2.1, 6.2.2, 6.2.3, 11.1, 11.2, 12, 13, 14,15, 15.1, 16, 20) de pe coloana \"DEPUNERE Obligatoriu daca proiectul o impune\" din sectiunea E – Lista documentelor anexate - trebuie bifate şi anexate dacă proiectul o impune."]

{"sheet":"Buget indicativ si Anexe","index":1,"n_rows":390,"n_cols":9,"rows_kept":390,"cut":false,"hidden":false,"merged":[[3,0,3,8],[4,0,4,8],[7,7,7,8],[9,0,9,5],[6,4,6,6],[7,0,7,1],[15,0,15,5],[16,0,16,5],[18,0,18,5],[14,0,14,5],[7,4,7,6],[10,0,10,5],[11,0,11,5],[12,0,12,5],[13,0,13,5],[17,0,17,5],[39,0,39,5],[34,0,34,5],[35,0,35,5],[21,0,21,5],[22,0,22,5],[23,0,23,5],[26,0,26,5],[27,0,27,5],[28,0,28,5],[29,0,29,5],[30,0,30,5],[19,0,19,5],[31,0,31,5],[32,0,32,5],[33,0,33,5],[72,0,72,5],[68,0,68,5],[73,0,73,5],[51,0,51,5],[38,0,38,5],[36,0,36,5],[37,0,37,5],[20,0,20,5],[24,0,24,5],[40,0,40,5],[65,0,65,5],[46,0,46,5],[47,0,47,5],[48,0,48,5],[64,0,64,5],[60,0,60,5],[44,0,44,5],[25,0,25,5],[43,0,43,3],[43,5,43,8],[67,6,67,8],[72,6,72,8],[69,0,69,5],[41,0,41,5],[42,0,42,5],[61,0,61,5],[62,0,62,5],[70,0,70,5],[49,0,49,5],[50,0,50,5],[56,0,56,5],[57,0,57,5],[58,0,58,5],[59,0,59,5],[55,0,55,5],[63,0,63,5],[84,0,84,5],[84,7,84,8],[85,0,85,5],[85,7,85,8],[86,0,86,5],[86,7,86,8],[101,1,101,6],[98,1,98,6],[99,1,99,6],[100,1,100,6],[83,0,83,5],[45,0,45,5],[81,0,81,5],[82,0,82,5],[76,0,76,5],[77,0,77,5],[78,0,78,5],[79,0,79,5],[80,0,80,5],[52,0,52,5],[53,0,53,5],[54,0,54,5],[75,0,75,5],[74,0,74,5],[66,0,66,5],[67,0,67,5],[108,1,108,6],[109,1,109,6],[107,1,107,6],[89,6,89,8],[129,1,129,6],[118,1,118,6],[119,1,119,6],[120,1,120,6],[121,1,121,6],[127,1,127,6],[128,1,128,6],[117,1,117,6],[122,1,122,6],[123,1,123,6],[124,1,124,6],[125,1,125,6],[126,1,126,6],[110,1,110,6],[111,1,111,6],[90,7,90,8],[91,0,91,8],[92,0,92,8],[93,1,93,6],[94,1,94,6],[152,1,152,6],[154,1,154,6],[162,0,162,8],[153,1,153,6],[155,1,155,6],[156,1,156,6],[157,1,157,6],[132,7,132,8],[140,0,140,6],[141,1,141,6],[142,1,142,6],[143,1,143,6],[144,1,144,6],[136,1,136,6],[136,7,136,8],[137,0,137,8],[138,1,138,6],[139,1,139,6],[139,7,139,8],[135,6,135,8],[130,0,130,6],[158,1,158,6],[159,0,159,8],[131,0,131,6],[165,1,165,2],[112,1,112,6],[113,1,113,6],[114,1,114,6],[115,1,115,6],[164,1,164,2],[164,4,164,5],[145,1,145,6],[132,0,132,6],[116,1,116,6],[165,4,165,5],[163,1,163,2],[163,4,163,5],[158,7,158,8],[146,1,146,6],[147,0,147,6],[148,1,148,6],[149,1,149,6],[150,0,150,6],[151,1,151,6],[185,1,185,6],[166,1,166,2],[166,4,166,5],[167,0,168,8],[170,0,170,2],[170,3,170,8],[177,0,177,8],[178,1,178,6],[179,1,179,6],[180,1,180,6],[181,1,181,6],[182,1,182,6],[183,1,183,6],[184,1,184,6],[172,0,172,2],[172,3,172,8],[176,7,176,8],[175,6,175,8],[193,1,193,6],[194,1,194,6],[195,1,195,6],[196,1,196,6],[197,1,197,6],[198,1,198,6],[186,1,186,6],[190,0,190,6],[190,7,190,8],[102,1,102,6],[103,1,103,6],[104,1,104,6],[105,1,105,6],[106,1,106,6],[95,1,95,6],[96,1,96,6],[97,1,97,6],[212,0,212,8],[202,1,202,6],[203,1,203,6],[207,0,207,6],[207,7,207,8],[187,1,187,6],[188,0,188,6],[189,0,189,6],[204,1,204,6],[205,0,205,6],[206,0,206,6],[191,1,191,6],[192,0,192,6],[199,1,199,6],[200,1,200,6],[201,1,201,6],[213,0,213,8],[215,4,215,6],[216,0,216,1],[216,4,216,6],[216,7,216,8],[218,0,218,5],[219,0,219,5],[218,6,218,7],[220,0,220,5],[221,0,221,5],[222,0,222,5],[223,0,223,5],[224,0,224,5],[225,0,225,5],[226,0,226,5],[227,0,227,5],[228,0,228,5],[229,0,229,5],[230,0,230,5],[231,0,231,5],[232,0,232,5],[233,0,233,5],[234,0,234,5],[234,6,234,8],[235,0,235,5],[236,0,236,5],[237,0,237,5],[238,0,238,5],[239,0,239,5],[240,0,240,5],[241,0,241,5],[242,0,242,5],[243,0,243,5],[244,0,244,5],[245,0,245,5],[246,0,246,5],[247,0,247,5],[248,0,248,5],[249,0,249,5],[250,0,250,5],[251,0,251,5],[252,0,252,5],[252,6,252,8],[253,0,253,5],[254,0,254,5],[255,0,255,5],[257,0,257,5],[257,6,257,8],[258,0,258,5],[259,0,259,5],[260,0,260,5],[261,0,261,5],[262,0,262,5],[263,0,263,5],[264,0,264,5],[265,0,265,5],[266,0,266,5],[267,0,267,5],[268,0,268,5],[269,0,269,5],[269,7,269,8],[270,0,270,5],[270,7,270,8],[271,0,271,5],[271,7,271,8],[274,6,274,8],[275,7,275,8],[276,0,276,8],[277,0,277,8],[278,1,278,6],[279,1,279,6],[280,1,280,6],[281,1,281,6],[282,1,282,6],[283,1,283,6],[284,1,284,6],[285,1,285,6],[286,1,286,6],[287,1,287,6],[288,1,288,6],[289,1,289,6],[290,1,290,6],[291,1,291,6],[292,1,292,6],[293,1,293,6],[294,1,294,6],[295,1,295,6],[296,1,296,6],[297,1,297,6],[298,1,298,6],[299,1,299,6],[300,1,300,6],[301,1,301,6],[302,1,302,6],[303,1,303,6],[304,1,304,6],[305,1,305,6],[306,1,306,6],[307,1,307,6],[308,0,308,6],[309,0,309,6],[310,0,310,6],[310,7,310,8],[311,1,311,6],[314,6,314,8],[315,1,315,6],[315,7,315,8],[316,0,316,8],[312,0,312,8],[317,1,317,6],[318,1,318,6],[318,7,318,8],[319,0,319,6],[320,1,320,6],[321,1,321,6],[322,1,322,6],[323,1,323,6],[324,1,324,6],[325,1,325,6],[326,1,326,6],[327,1,327,6],[328,1,328,6],[329,0,329,6],[330,1,330,6],[331,1,331,6],[332,0,332,6],[333,1,333,6],[334,1,334,6],[335,1,335,6],[336,1,336,6],[337,1,337,6],[338,1,338,6],[339,1,339,6],[339,7,339,8],[340,0,340,8],[343,0,343,8],[341,0,341,8],[344,1,344,2],[344,4,344,5],[345,1,345,2],[345,4,345,5],[346,1,346,2],[346,4,346,5],[347,1,347,2],[347,4,347,5],[348,0,349,8],[351,0,351,2],[351,3,351,8],[353,0,353,2],[353,3,353,8],[356,6,356,8],[357,7,357,8],[358,0,358,8],[359,1,359,6],[360,1,360,6],[377,1,377,6],[361,1,361,6],[362,1,362,6],[363,1,363,6],[364,1,364,6],[365,1,365,6],[366,1,366,6],[367,1,367,6],[368,0,368,6],[369,0,369,6],[389,0,389,8],[1,0,1,8],[133,0,133,8],[160,0,160,8],[208,0,208,8],[387,0,387,6],[387,7,387,8],[378,1,378,6],[379,1,379,6],[380,1,380,6],[381,1,381,6],[382,1,382,6],[383,1,383,6],[384,1,384,6],[385,0,385,6],[386,0,386,6],[370,0,370,6],[370,7,370,8],[371,1,371,6],[372,0,372,6],[373,1,373,6],[374,1,374,6],[375,1,375,6],[376,1,376,6]]}
[]
["Buget indicativ EURO - HG 907/2016"]
[]
["MINISTERUL AGRICULTURII ŞI DEZVOLTĂRII RURALE"]
["AGENŢIA PENTRU FINANŢAREA INVESTIŢIILOR RURALE"]
[]
[null,null,null,null,"Data intocmirii devizului general"]
["Curs Euro",null,null,null,"din SF/DALI/MJ"]
[]
["Submăsura",null,null,null,null,null,"19.2"]
["Denumirea capitolelor de cheltuieli",null,null,null,null,null,"Cheltuieli eligibile","Cheltuieli neeligibile","TOTAL"]
[null,null,null,null,null,null,"EURO","EURO","EURO"]
[1,null,null,null,null,null,2,3,4]
["Capitolul 1 Cheltuieli pentru obtinerea şi amenajarea terenului - total, din care:",null,null,null,null,null,{"$f":"G15+G16+G17+G18","v":0},{"$f":"H15+H16+H17+H18","v":0},{"$f":"G14+H14","v":0}]
["1.1 Obţinerea terenului",null,null,null,null,null,null,null,0]
["1.2 Amenajarea terenului",null,null,null,null,null,null,null,0]
["1.3 Amenajari pentru protecţia mediului şi aducerea terenului la starea iniţială",null,null,null,null,null,null,null,0]
["1.4 Cheltuieli pentru realocarea/protecția utilităților",null,null,null,null,null,null,null,0]
["Capitolul 2 Cheltuieli pentru asigurarea utilităţilor necesare obiectivului de investiții",null,null,null,null,null,null,null,0]
["Capitolul 3 Cheltuieli pentru proiectare şi asistenţă tehnică - total, din care:",null,null,null,null,null,{"$f":"G21+G25+G26+G27+G28+G36+G39","v":0},{"$f":"H21+H25+H26+H27+H28+H35+H36+H39","v":0},{"$f":"I21+I25+I26+I27+I28+I35+I36+I39","v":0}]
["3.1 Studii ",null,null,null,null,null,{"$f":"SUM(G22:G24)","v":0},{"$f":"SUM(H22:H24)","v":0},{"$f":"G21+H21","v":0}]
["       3.1.1. Studii de teren",null,null,null,null,null,null,null,0]
["       3.1.2. Raport privind impactul asupra mediului",null,null,null,null,null,null,null,0]
["       3.1.3. Alte studii specifice",null,null,null,null,null,null,null,0]
["3.2 Documentații-suport și cheltuieli pentru obţinerea de avize, acorduri şi autorizaţii",null,null,null,null,null,null,null,0]
["3.3 Expertiza tehnica",null,null,null,null,null,null,null,0]
["3.4. Certificarea performantei energetice si auditul energetic al clădirilor",null,null,null,null,null,null,null,0]
["3.5. Proiectare",null,null,null,null,null,{"$f":"SUM(G29:G34)","v":0},{"$f":"SUM(H29:H34)","v":0},{"$f":"SUM(G28:H28)","v":0}]
["     3.5.1. Temă de proiectare",null,null,null,null,null,null,null,0]
["     3.5.2. Studii de prefezabilitate",null,null,null,null,null,null,null,0]
["     3.5.3. Studii de fezabilitate/documentație de avizare a lucrărilor de intervenții si deviz general",null,null,null,null,null,null,null,0]
["     3.5.4. Documentațiile tehnice necesare în vederea obținerii avizelor/acordurilor/autorizațiilor",null,null,null,null,null,null,null,0]
["     3.5.5. Verificarea tehnică de calitate a proiectului tehnic și a detaliilor de execuție",null,null,null,null,null,null,null,0]
["     3.5.6. Proiect tehnic si detalii de execuție",null,null,null,null,null,null,null,0]
["3.6. Organizarea procedurilor de achiziţie",null,null,null,null,null,null,null,{"$f":"H35","v":0}]
["3.7 Consultanţă",null,null,null,null,null,{"$f":"G37","v":0},{"$f":"H37+H38","v":0},{"$f":"G36+H36","v":0}]
["     3.7.1. Managementul de proiect pentru obiectivul de investiții",null,null,null,null,null,null,null,{"$f":"G37+H37","v":0}]
["     3.7.2. Auditul financiar",null,null,null,null,null,null,null,{"$f":"H38","v":0}]
["3.8 Asistenţă tehnică",null,null,null,null,null,{"$f":"G40+G43","v":0},{"$f":"H40+H43","v":0},{"$f":"G39+H39","v":0}]
["    3.8.1. Asistență tehnică din partea proiectantului",null,null,null,null,null,{"$f":"G41+G42","v":0},{"$f":"H41+H42","v":0},{"$f":"G40+H40","v":0}]
["        3.8.1.1. pe perioada de execuție a lucrărilor",null,null,null,null,null,null,null,{"$f":"G41+H41","v":0}]
["        3.8.1.2. pentru participarea proiectantului la fazele incluse în programul de control al lucrărilor de execuție,avizat de către Inspectoratul de Stat în Construcții",null,null,null,null,null,null,null,{"$f":"G42+H42","v":0}]
["    3.8.2. Dirigenție de șantier",null,null,null,null,null,null,null,{"$f":"G43+H43","v":0}]
["Verificare încadrare cheltuieli capitolul 3",null,null,null,"max. 10%",{"$f":"G20/G67*100","v":{"$error":"#DIV/0!"}}]
["Capitolul 4 Cheltuieli pentru investiţia de bază - total, din care:",null,null,null,null,null,{"$f":"G46+G47+G48+G49+G50+G51","v":0},{"$f":"H46+H47+H48+H49+H50+H51","v":0},{"$f":"G45+H45","v":0}]
["4.1 Construcţii şi instalaţii",null,null,null,null,null,null,null,0]
["4.2 Montaj utilaje, echipamente tehnologice și funcțiomale",null,null,null,null,null,null,null,0]
["4.3 Utilaje, echipamente tehnologice şi funcţionale care necesită montaj ",null,null,null,null,null,null,null,0]
["4.4 Utilaje, echipamente tehnologice și funcționale care nu necesită montaj și echipamente de transport",null,null,null,null,null,null,null,0]
["4.5 Dotări",null,null,null,null,null,null,null,0]
["4.6 Active necorporale",null,null,null,null,null,null,null,0]
["Capitolul 5 Alte cheltuieli - total, din care:",null,null,null,null,null,{"$f":"G53+G56+G63","v":0},{"$f":"H53+H56+H62+H63","v":0},0]
["5.1 Organizare de şantier",null,null,null,null,null,{"$f":"G54+G55","v":0},{"$f":"H54+H55","v":0},0]
["5.1.1 lucrări de construcţii şi instalaţii aferente organizării de şantier",null,null,null,null,null,null,null,0]
["        5.1.2 cheltuieli conexe orgănizării şantierului",null,null,null,null,null,null,null,0]
["5.2 Comisioane, cote, taxe, costul creditului",null,null,null,null,null,{"$f":"G58+G59+G61","v":0},{"$f":"H57+H58+H59+H60+H61","v":0},0]
["    5.2.1. Comisioanele și dobânzile aferente creditului băncii finanțatoare",null,null,null,null,null,null,null,{"$f":"H57","v":0}]
["    5.2.2. Cota aferentă ISC pentru controlul calitații lucrărilor de construcții",null,null,null,null,null,null,null,{"$f":"G58+H58","v":0}]
["    5.2.3. Cota aferentă ISC pentru controlul statului în amenajarea teritoriului, urbanism și pentru autorizarea lucrărilor de constructii",null,null,null,null,null,null,null,{"$f":"G59+H59","v":0}]
["    5.2.4. Cota aferentă Casei Sociale a Constructorilor - CSC",null,null,null,null,null,null,null,{"$f":"H60","v":0}]
["    5.2.5. Taxe pentru acorduri, avize conforme și autorizația de construire/desființare",null,null,null,null,null,null,null,{"$f":"G61+H61","v":0}]
["5.3 Cheltuile diverse și neprevăzute",null,null,null,null,null,null,null,{"$f":"H62","v":0}]
["5.4 Cheltuieli pentru informare și publicitate",null,null,null,null,null,null,null,{"$f":"G63+H63","v":0}]
["Capitolul 6 Cheltuieli pentru probe tehnologice și teste - total, din care:",null,null,null,null,null,{"$f":"G66","v":0},{"$f":"H66+H65","v":0},{"$f":"G64+H64","v":0}]
["6.1 Pregătirea personalului de exploatare",null,null,null,null,null,null,null,{"$f":"H65","v":0}]
["6.2 Probe tehnologice şi teste",null,null,null,null,null,null,null,{"$f":"G66+H66","v":0}]
["TOTAL  GENERAL",null,null,null,null,null,{"$f":"G14+G19+G20+G45+G52+G64","v":0},{"$f":"H14+H19+H20+H45+H52+H64","v":0},{"$f":"G67+H67","v":0}]
["Verificare actualizare - actualizare mai mică de 5% din valoarea eligibila",null,null,null,null,null,{"$f":"G69/G67*100","v":{"$error":"#DIV/0!"}}]
["ACTUALIZARE Cheltuieli Eligibile (max 5%)",null,null,null,null,null,null,null,{"$f":"G69","v":0}]
["TOTAL GENERAL CU ACTUALIZARE",null,null,null,null,null,{"$f":"G67+I69","v":0},{"$f":"H67","v":0},{"$f":"G70+H70","v":0}]
["Valoare TVA",null,null,null,null,null,null,null,{"$f":"G71+H71","v":0}]
[]
["TOTAL GENERAL inclusiv TVA",null,null,null,null,null,{"$f":"I70+I71","v":0}]
[null,null,null,null,null,null,"LEI","EURO"]
["VALOARE TOTALĂ",null,null,null,null,null,{"$f":"H75*C8","v":0},{"$f":"G73","v":0}]
["VALOARE ELIGIBILĂ",null,null,null,null,null,{"$f":"H76*C8","v":0},{"$f":"G70","v":0}]
["VALOARE NEELIGIBILĂ",null,null,null,null,null,{"$f":"H77*C8","v":0},{"$f":"H75-H76","v":0}]
["PLAN FINANCIAR",null,null,null,null,null,"Cheltuieli eligibile  EURO","Cheltuieli neeligibile  EURO","Total"]
["Ajutor public nerambursabil (contribuţie UE şi cofinanţare naţională)",null,null,null,null,null,null,null,{"$f":"G79","v":0}]
["Cofinanțare privată, din care:",null,null,null,null,null,{"$f":"G81+G82","v":0},{"$f":"H81+H82","v":0},{"$f":"G80+H80","v":0}]
["                                                       - autofinantare",null,null,null,null,null,null,null,{"$f":"G81+H81","v":0}]
["                                                       - imprumuturi",null,null,null,null,null,null,null,{"$f":"G82+H82","v":0}]
["Buget local",null,null,null,null,null,null,null,{"$f":"G83+H83","v":0}]
["TOTAL PROIECT",null,null,null,null,null,{"$f":"G79+G80+G83","v":0},{"$f":"H80+H83","v":0},{"$f":"G84+H84","v":0}]
["Procent contribuţie publică",null,null,null,null,null,{"$f":"G79/G84*100","v":{"$error":"#DIV/0!"}},"%"]
["Avans solicitat"]
["Procent avans solicitat ca procent din ajutorul public nerambursabil",null,null,null,null,null,{"$f":"G86/G79*100","v":{"$error":"#DIV/0!"}},"Suma avans mai mica  de 50% din ajutorul public"]
[]
[]
[null,null,null,null,null,null,"Anexa A1 - HG 907/2016"]
[null,null,null,null,null,null,null,"august 2017"]
["Deviz financiar- Capitolul 3 - Cheltuieli pentru proiectare şi asistenţa tehnică - EURO"]
[]
["Nr. Crt","Specificatie",null,null,null,null,null,"Valoare eligibila","Valoare neeligibila"]
[3.1,"Cheltuieli pentru studii - total din care",null,null,null,null,null,{"$f":"SUM(H96:H98)","v":0},{"$f":"SUM(I96:I98)","v":0}]
[null,"3.1.1 Studii de teren: studii geotehnice, geologice, hidrologice, hidrogeotehnice, fotogrammetrice, topografice şi de stabilitate a terenului pe care se amplasează obiectivul de investiţie"]
[null,"3.1.2 Raport privind impactul asupra mediului"]
[null,"3.1.3. Studii de specialitate necesare în funcție de specificul investiției"]
[3.2,"Documentații-suport și cheltuieli pentru obţinerea de avize, acorduri şi autorizaţii",null,null,null,null,null,{"$f":"H100+H101+H102+H105+H106+H107+H108","v":0},{"$f":"I100+I101+I102+I103+I104+I105+I106+I107+I108","v":0}]
[null,"1. obţinerea/prelungirea valabilităţii ceritificatului de urbanism"]
[null,"2. obţinerea/prelungirea valabilităţii autorizaţiei de construire/ desfiinţare"]
[null,"3. obţinerea avizelor şi acordurilor pentru racorduri şi branşamente la reţelele publice de alimentare cu apă, canalizare, alimentare cu gaze, alimentare cu agent termic, energie electrică, telefonie"]
[null,"4. obţinerea certificatului de nomenclatură stradală şi adresă"]
[null,"5. întocmirea documentaţiei, obţinerea numărului cadastral provizoriu şi înregistrarea terenului în Cartea Funciară"]
[null,"6. obţinerea actului administrativ al autorității competente pentru protecția mediului"]
[null,"7. obţinerea avizului de protecție civilă"]
[null,"8. avizul de specialitate în cazul obiectivelor de patrimoniu"]
[null,"9. alte avize, acorduri şi autorizaţii "]
[3.3,"Cheltuieli pentru expertizarea tehnică a construcțiilor existente, a structurilor și/sau, după caz, a proiectelor tehnice, inclusiv întocmirea de către expertul tehnic a raportului de expertiză tehnică"]
[3.4,"Cheltuieli pentru certificarea performanței energetice și auditul energetic al clădirilor"]
[3.5,"Cheltuieli pentru proiectare",null,null,null,null,null,{"$f":"SUM(H112:H117)","v":0},{"$f":"SUM(I112:I117)","v":0}]
[null,"3.5.1 Temă de proiectare"]
[null,"3.5.2 Studiu de prefezabilitate"]
[null,"3.5.3 Studiu de fezabilitate/documentație de avizare a lucrărilor de intervenții și deviz general"]
[null,"3.5.4 Documentațiile tehnice necesare în vederea obținerii avizelor / acordurilor / autorizațiilor"]
[null,"3.5.5 Verificarea tehnică de calitate a proiectului tehnic și a detaliilor de execuție"]
[null,"3.5.6 Proiect tehnic și detalii de execuție"]
[3.6,"Cheltuieli aferente organizării și derularii procedurilor de achiziții publice",null,null,null,null,null,null,{"$f":"SUM(I119:I122)","v":0}]
[null,"1. Cheltuieli aferente întocmirii documentației de atribuire și multiplicării acesteia (exclusiv cele cumparate de ofertant)"]
[null,"2. Cheltuieli cu onorariile, transportul, cazarea și diurna membrilor desemnați în comisiile de evaluare"]
[null,"3. Anunțuri de intenție, de participare și de atribuire a contractelor, corespondență prin poștă, fax, poștă electronică în legătură cu procedurile de achiziție publică"]
[null,"4. Cheltuieli aferente organizării și derulării procedurilor de achiziție publică"]
[3.7,"Cheltuieli pentru consultanţă ",null,null,null,null,null,{"$f":"H124","v":0},{"$f":"I124+I125","v":0}]
[null,"3.7.1 Managementul de proiect pentru obiectivul de investiții"]
[null,"3.7.2 Auditul financiar"]
[3.8,"Cheltuieli pentru asistenţa tehnică",null,null,null,null,null,{"$f":"H127+H130","v":0},{"$f":"I127+I130","v":0}]
[null,"3.8.1 Asistență tehnică din partea proiectantului",null,null,null,null,null,{"$f":"H128+H129","v":0},{"$f":"I128+I129","v":0}]
[null,"3.8.1.1. pe perioada de execuție a lucrărilor"]
[null,"3.8.1.2 pentru participarea proiectantului la fezele incluse în programul de control al lucrărilor de execuție, avizat de către Inspectoratul de Stat în Construcții"]
[null,"3.8.2. Dirigenție de șantier, asigurată de personal tehnic de specialitate, autorizat"]
["Total valoare fără TVA",null,null,null,null,null,null,{"$f":"H95+H99+H109+H110+H111+H118+H123+H126","v":0},{"$f":"I95+I99+I109+I110+I111+I118+I123+I126","v":0}]
["Valoare TVA (aferentă cheltuielilor eligibile şi neeligibile)"]
["         TOTAL DEVIZ FINANCIAR 1 (inclusiv TVA)",null,null,null,null,null,null,{"$f":"H131+H132+I131+I132","v":0}]
["ADAUGA DEVIZ FINANCIAR, DACA ESTE CAZUL."]
[]
[null,null,null,null,null,null,"Anexa A2 - HG 907/2016"]
[null,null,null,null,null,null,null,"august 2017"]
["DEVIZ PE OBIECT*"]
[]
["Nr.crt","Denumire",null,null,null,null,null,"Valoarea pe categorii de lucrări, fară TVA - EURO"]
[" Cap. 4 + Cheltuieli pentru investiția de bază                                                                                                             I – LUCRARI DE CONSTRUCTII SI INSTALATII",null,null,null,null,null,null,"Valoare eligibila","Valoare neeligibila"]
[4.0999999999999996,"Construcții și intalații"]
[null,"4.1.1 Terasamente, sistematizare pe verticală și amenajări exterioare"]
[null,"4.1.2 Rezistență"]
[null,"4.1.3 Arhitectură"]
[null,"4.1.4 Instalații"]
[null,"TOTAL I (fara TVA)",null,null,null,null,null,{"$f":"SUM(H143:H146)","v":0},{"$f":"SUM(I143:I146)","v":0}]
["     II - MONTAJ"]
[4.2,"Montaj utilaje, echipamente tehnologice și funcționale"]
[null,"TOTAL II (fara TVA)",null,null,null,null,null,{"$f":"H149","v":0},{"$f":"I149","v":0}]
["    III - PROCURARE"]
[4.3,"Utilaje, echipamente tehnologice și funcționale care necesită montaj"]
[4.4000000000000004,"Utilaje, echipamente tehnologice și funcționale care nu necesită montaj și echipamente de transport"]
[4.5,"Dotări"]
[4.5999999999999996,"Active necorporale"]
[null,"TOTAL III (fara TVA)",null,null,null,null,null,{"$f":"SUM(H152:H155)","v":0},{"$f":"SUM(I152:I155)","v":0}]
[null,"TOTAL ( TOTAL I + TOTAL II +TOTAL III) fără TVA",null,null,null,null,null,{"$f":"H147+H150+H156","v":0},{"$f":"I147+I150+I156","v":0}]
[null,"TVA aferent cheltuielilor eligibile şi neeligibile"]
[null,"TOTAL DEVIZ PE OBIECT (inclusiv TVA)",null,null,null,null,null,{"$f":"H157+I157+H158+I158","v":0}]
["*) Se înscrie denumirea obiectului de construcţie sau intervenţie"]
["ADAUGA DEVIZ, DACA ESTE CAZUL."]
[]
["Situaţia achiziţiilor publice efectuate până la depunerea Cererii de finanţare cu respectarea condiţiilor de eligibilitate a cheltuielilor prevăzute în fişa masurii M1/6B"]
["Nr.crt","Obiectul contractului",null,"Valoarea reala LEI","Procedura aplicata",null,"Data începerii procedurii (zz/ ll/aaaa)","Data finalizarii procedurii (zz/ ll/aaaa)","Stadiul procedurii"]
[1,"Servicii de consultanta"]
[2,"Elaborarea Studiului de Fezabilitate"]
[3]
["Declar pe proprie raspundere ca informatiile din tabelul  de mai sus sunt corecte si ca la atribuirea contractelor de servicii mentionate au fost respectate prevederile legislatiei nationale in vigoare privind procedura de achizitie publica"]
[]
[]
["Reprezentant legal, Nume/Prenume"]
[]
["Semnatura si ştampila"]
[]
[]
[null,null,null,null,null,null,"Anexa A3 - HG 907/2016"]
[null,null,null,null,null,null,null,"august 2017"]
["Deviz capitolul 2- Cheltuieli pentru asigurarea utilităţilor necesare obiectivului - EURO"]
["Nr.crt","Specificatie",null,null,null,null,null,"Valoare \neligibilă\n","Valoare\n neeligibilă\n"]
[1,"Alimentare cu apa"]
[2,"Canalizare"]
[3,"Alimentare cu gaze naturale"]
[4,"Alimentare cu agent termic"]
[5,"Alimentare cu energie electrica"]
[6,"Telecomunicatii (telefonie, radio-tv, etc.)"]
[7,"Drumuri de acces"]
[8,"Căi ferate industriale"]
[9,"Alte utilități"]
["TOTAL DEVIZ CAPITOLUL 2",null,null,null,null,null,null,{"$f":"SUM(H180:H188)","v":0},{"$f":"SUM(I180:I188)","v":0}]
["Valoare TVA aferentă cheltuielilor eligibile și neeligibile"]
["         TOTAL DEVIZ CAPITOLUL 2 (inclusiv TVA)",null,null,null,null,null,null,{"$f":"H189+I189+H190+I190","v":0}]
[]
["Deviz capitolul 5 - Alte cheltuieli - EURO"]
["Nr.crt","Specificatie",null,null,null,null,null,"Valoare \neligibilă\n","Valoare\n neeligibilă\n"]
[5.0999999999999996,"Organizarea de santier",null,null,null,null,null,{"$f":"H196+H197","v":0},{"$f":"I196+I197","v":0}]
[null,"5.1.1 Lucrări de construcții și instalații aferente organizării de șantier"]
[null,"5.1.2 Cheltuieli conexe organizării de șantierului"]
[5.2,"Comisioane, cote, taxe, costul creditului",null,null,null,null,null,{"$f":"H200+H201+H203","v":0},{"$f":"SUM(I199:I203)","v":0}]
[null,"5.2.1 Comisioanele și dobănzile aferente creditului băncii finanțatoare"]
[null,"5.2.2 Cota aferenta ISC pentru controlul calității lucrărilor de construcții"]
[null,"5.2.3 Cota aferenta ISC pentru controlul statului în amenajarea teritoriului, urbanism si pentru autorizarea lucrarilor de constructii"]
[null,"5.2.4 Cota aferenta Casei sociale a Constructorilor - CSC"]
[null,"5.2.5 Taxe pentru acorduri, avize conforme și autorizația de construire/desființare"]
[5.3,"Cheltuieli diverse si neprevazute"]
[5.4,"Cheltuieli pentru informare și publicare"]
["TOTAL DEVIZ CAPITOLUL 5",null,null,null,null,null,null,{"$f":"H195+H198+H205","v":0},{"$f":"I195+I198+I204+I205","v":0}]
["Valoare TVA aferenta cheltuielilor eligibile si neeligibile"]
["TOTAL DEVIZ CAPITOLUL 5 (inclusiv TVA)",null,null,null,null,null,null,{"$f":"H206+I206+H207+I207","v":0}]
["ADAUGA ANEXA 3, DACA ESTE CAZUL."]
[]
["Buget indicativ EURO - HG 28/2008"]
[]
["MINISTERUL AGRICULTURII ŞI DEZVOLTĂRII RURALE"]
["AGENŢIA PENTRU FINANŢAREA INVESTIŢIILOR RURALE"]
[]
[null,null,null,null,"Data intocmirii devizului general"]
["Curs Euro",null,null,null,"din SF/DALI/MJ"]
[]
["Submăsura",null,null,null,null,null,"19.2_M4/6B_7_6"]
["Denumirea capitolelor de cheltuieli",null,null,null,null,null,"Cheltuieli eligibile","Cheltuieli neeligibile","TOTAL"]
[null,null,null,null,null,null,"EURO","EURO","EURO"]
[1,null,null,null,null,null,2,3,4]
["Capitolul 1 Cheltuieli pentru obtinerea şi amenajarea terenului - total, din care:",null,null,null,null,null,{"$f":"G224+G225+G226","v":0},{"$f":"H224+H225+H226","v":0},{"$f":"G223+H223","v":0}]
["1.1 Cheltuieli pentru obţinerea terenului",null,null,null,null,null,null,null,0]
["1.2 Cheltuieli pentru amenajarea terenului",null,null,null,null,null,null,null,0]
["1.3 Amenajari pentru protecţia mediului şi aducerea terenului la starea iniţială",null,null,null,null,null,null,null,0]
["Capitolul 2 Cheltuieli pentru asigurarea utilităţilor necesare obiectivului ",null,null,null,null,null,null,null,0]
["Capitolul 3 Cheltuieli pentru proiectare şi asistenţă tehnică - total, din care:",null,null,null,null,null,{"$f":"G229+G230+G231+G232+G233+G234","v":0},{"$f":"H229+H230+H231+H232+H233+H234","v":0},{"$f":"I229+I230+I21+I232+I233+I234","v":0}]
["3.1 Studii de teren",null,null,null,null,null,null,null,{"$f":"G229+H229","v":0}]
["3.2 Obtinerea de avize acorduri si autorizatii",null,null,null,null,null,null,null,0]
["3.3 Proiectare si engineering",null,null,null,null,null,null,null,0]
["3.4 Organizarea procedurilor de achizitie publica",null,null,null,null,null,null,null,0]
["3.5 Consultanta",null,null,null,null,null,null,null,0]
["3.6 Asistenta tehnica",null,null,null,null,null,null,null,0]
["Verificare incadrare cheltuieli capitol 3 max 5%",null,null,null,null,null,{"$f":"G228/G252*100","v":{"$error":"#DIV/0!"}}]
["Capitolul 4 Cheltuieli pentru investiţia de bază - total, din care:",null,null,null,null,null,{"$f":"G237+G238+G239+G240+G241+G242","v":0},{"$f":"H237+H238+H239+H240+H241+H242","v":0},{"$f":"G236+H236","v":0}]
["4.1 Construcţii şi instalaţii",null,null,null,null,null,null,null,0]
["4.2 Montaj utilaj tehnologic",null,null,null,null,null,null,null,0]
["4.3 Utilaje, echipamente tehnologice şi funcţionale montaj (procurare) ",null,null,null,null,null,null,null,0]
["4.4 Utilaje si echipamente fara montaj, mijloace de transport, alte achizitii specifice",null,null,null,null,null,null,null,0]
["4.5 Dotări",null,null,null,null,null,null,null,0]
["4.6 Active necorporale",null,null,null,null,null,null,null,0]
["Capitolul 5 Alte cheltuieli - total, din care:",null,null,null,null,null,{"$f":"G244+G247+G248","v":0},{"$f":"H244+H247+H248","v":0},0]
["5.1 Organizare de şantier",null,null,null,null,null,{"$f":"G245+G246","v":0},{"$f":"H245+H246","v":0},0]
["5.1.1 lucrări de construcţii şi instalaţii aferente organizării de şantier",null,null,null,null,null,null,null,0]
["        5.1.2 cheltuieli conexe orgănizării şantierului",null,null,null,null,null,null,null,0]
["5.2 Comisioane, cote, taxe, costul creditului",null,null,null,null,null,0,0,0]
["5.3 Cheltuile diverse și neprevăzute",null,null,null,null,null,null,null,{"$f":"H248","v":0}]
["Capitolul 6 Cheltuieli pentru darea in exploatare - total, din care:",null,null,null,null,null,{"$f":"G251","v":0},{"$f":"H251+H250","v":0},{"$f":"G249+H249","v":0}]
["6.1 Pregătirea personalului de exploatare",null,null,null,null,null,null,null,{"$f":"H250","v":0}]
["6.2 Probe tehnologice şi teste",null,null,null,null,null,null,null,{"$f":"G251+H251","v":0}]
["TOTAL  GENERAL",null,null,null,null,null,{"$f":"G223+G227+G228+G236+G243+G249","v":0},{"$f":"H223+H227+H228+H236+H243+H249","v":0},{"$f":"G252+H252","v":0}]
["Verificare actualizare - actualizare mai mică de 5% din valoarea eligibila",null,null,null,null,null,{"$f":"G254/G252*100","v":{"$error":"#DIV/0!"}}]
["ACTUALIZARE Cheltuieli Eligibile (max 5%)",null,null,null,null,null,null,null,{"$f":"G254","v":0}]
["TOTAL GENERAL CU ACTUALIZARE",null,null,null,null,null,{"$f":"G252+I254","v":0},{"$f":"H252","v":0},{"$f":"G255+H255","v":0}]
["Valoare TVA",null,null,null,null,null,null,null,{"$f":"G256+H256","v":0}]
[]
["TOTAL GENERAL inclusiv TVA",null,null,null,null,null,{"$f":"I255+I256","v":0}]
[null,null,null,null,null,null,"LEI","EURO"]
["VALOARE TOTALĂ",null,null,null,null,null,{"$f":"H260*C217","v":0},{"$f":"G258","v":0}]
["VALOARE ELIGIBILĂ",null,null,null,null,null,{"$f":"H261*C217","v":0},{"$f":"G255","v":0}]
["VALOARE NEELIGIBILĂ",null,null,null,null,null,{"$f":"H262*C217","v":0},{"$f":"H260-H261","v":0}]
["PLAN FINANCIAR",null,null,null,null,null,"Cheltuieli eligibile  EURO","Cheltuieli neeligibile  EURO","Total"]
["Ajutor public nerambursabil (contribuţie UE şi cofinanţare naţională)",null,null,null,null,null,null,null,{"$f":"G264","v":0}]
["Cofinanțare privată, din care:",null,null,null,null,null,{"$f":"G266+G267","v":0},{"$f":"H266+H267","v":0},{"$f":"G265+H265","v":0}]
["                                                       - autofinantare",null,null,null,null,null,null,null,{"$f":"G266+H266","v":0}]
["                                                       - imprumuturi",null,null,null,null,null,null,null,{"$f":"G267+H267","v":0}]
["Buget local",null,null,null,null,null,null,null,{"$f":"G268+H268","v":0}]
["TOTAL PROIECT",null,null,null,null,null,{"$f":"G264+G265+G268","v":0},{"$f":"H265+H268","v":0},{"$f":"G269+H269","v":0}]
["Procent contribuţie publică",null,null,null,null,null,{"$f":"G264/G269*100","v":{"$error":"#DIV/0!"}},"%"]
["Avans solicitat"]
["Procent avans solicitat ca procent din ajutorul public nerambursabil",null,null,null,null,null,{"$f":"G271/G264*100","v":{"$error":"#DIV/0!"}},"Suma avans mai mica  de 50% din ajutorul public"]
[]
[]
[null,null,null,null,null,null,"Anexa A1 - HG 28/2008"]
[null,null,null,null,null,null,null,"august 2017"]
["Deviz financiar- Capitolul 3 - Cheltuieli pentru proiectare şi asistenţa tehnică - EURO"]
[]
["Nr. Crt","Specificatie",null,null,null,null,null,"Valoare eligibila","Valoare neeligibila"]
[1,"Cheltuieli pentru studii de teren (geotehnice, geologice, hidrologice, hidrogeologice, fotogrammetrice, topografice si de stabilitate a terenului pe care se amplaseaza obiectivul de investitii)",null,null,null,null,null,0,0]
[2,"Cheltuieli pentru obţinere de avize, acorduri şi autorizaţii - total, din care:",null,null,null,null,null,{"$f":"SUM(H282:H291)","v":0},{"$f":"SUM(I282:I291)","v":0}]
[null,"1. obţinerea/prelungirea valabilităţii ceritificatului de urbanism"]
[null,"2. obţinerea/prelungirea valabilităţii autorizaţiei de construire/ desfiinţare, obtinere autorizatii de scoatere din circuitul agricol"]
[null,"3. obţinerea avizelor şi acordurilor pentru racorduri şi branşamente la reţelele publice de apă, canalizare, gaze, termoficare, energie electrică, telefonie, etc"]
[null,"4. obţinere aviz sanitar, sanitar-veterinar şi fitosanitar"]
[null,"5. obţinerea certificatului de nomenclatură stradală şi adresa"]
[null,"6. întocmirea documentaţiei, obţinerea numărului Cadastral provizoriu şi\nînregistrarea terenului în Cartea Funciară"]
[null,"7. obţinerea avizului PSI"]
[null,"8. obţinerea acordului de mediu"]
[null,"9. cai ferate"]
[null,"10. alte avize, acorduri şi autorizaţii solicitate prin lege"]
[3,"Proiectare şi inginerie - total, din care:",null,null,null,null,null,{"$f":"SUM(H293:H298)","v":0},{"$f":"SUM(I293:I298)","v":0}]
[null,"a. studiu de prefezabilitate"]
[null,"b. studiu de fezabilitate"]
[null,"c. proiect tehnic"]
[null,"d. detalii de execuţie"]
[null,"e. verificarea tehnică a proiectării"]
[null,"f. elaborarea certificatului de performanţă energetică a clădirii"]
[null,"2. Documentaţii necesare pentru obţinerea acordurilor, avizelor şi autorizaţiilor\naferente obiectivului de investiții"]
[null,"3. Cheltuielile pentru expertiza tehnică efectuată pentru construcţii începute şi\nneterminate sau care urmează a fi modificate prin proiect (modernizări, consolidări\netc.)"]
[null,"4. Cheltuielile pentru efectuarea auditului energetic"]
[4,"Organizarea procedurilor de achiziţie",null,null,null,null,null,null,0]
[5,"Cheltuieli pentru consultanţă total din care",null,null,null,null,null,{"$f":"H304","v":0},{"$f":"I304+I305","v":0}]
[null,"1. plata serviciilor de consultanţă la elaborarea memoriului justificativ, studiilor de piaţă, de evaluare, la întocmirea cererii de finanţare3.7.1 Managementul de proiect pentru obiectivul de investiții"]
[null,"2. plata serviciilor de consultanţă în domeniul managementului investiţiei sau\nadministrarea contractului de execuţie"]
[6,"Cheltuieli pentru asistenţa tehnică total din care",null,null,null,null,null,{"$f":"SUM(H307:H308)","v":0},{"$f":"SUM(I307:I308)","v":0}]
[null,"1. asistenţa tehnică din partea proiectantului în cazul când aceasta nu intră în\ntarifarea proiectării"]
[null,"2. plata diriginţilor de şantier desemnaţi de autoritatea contractantă, autorizaţi\nconform prevederilor legale pentru verificarea execuţiei lucrărilor de construcţii şi\ninstalaţii"]
["Total valoare fără TVA",null,null,null,null,null,null,{"$f":"H280+H281+H292+H303+H306+H302","v":0},{"$f":"I280+I281+I292+I303+I306","v":0}]
["Valoare TVA (aferentă cheltuielilor eligibile şi neeligibile)"]
["         TOTAL DEVIZ FINANCIAR 1 (inclusiv TVA)",null,null,null,null,null,null,{"$f":"H309+H310+I309+I310","v":0}]
[]
["ADAUGA DEVIZ FINANCIAR, DACA E CAZUL."]
[]
[null,null,null,null,null,null,"Anexa A2 - HG 28/2008"]
[null,null,null,null,null,null,null,"august 2017"]
["DEVIZ PE OBIECT*"]
[]
["Nr.crt","Denumire",null,null,null,null,null,"Valoarea pe categorii de lucrări, fară TVA - EURO"]
[" Cap. 4 + Cheltuieli pentru investiția de bază                                                                                                             I – LUCRARI DE CONSTRUCTII SI INSTALATII",null,null,null,null,null,null,"Valoare eligibila","Valoare neeligibila"]
[1,"Terasamente"]
[2,"Constructii rezistenta (fundatii, structura de rezistenta) si arhitectura (inchideri exterioare, compartimentari, finisaje)"]
[3,"Izolatii"]
[4,"Instalatii electrice"]
[5,"Instalatii sanitare"]
[6,"Instalaţii de încălzire, ventilare, climatizare. PSI, radio-tv, intranet"]
[null,"Instalatii de alimentare cu gaze naturale"]
[null,"Instalatii de telecomunicatii"]
[null,"TOTAL I (fara TVA)",null,null,null,null,null,{"$f":"SUM(H321:H328)","v":0},{"$f":"SUM(I321:I328)","v":0}]
["     II - MONTAJ"]
[9,"Montaj utilaje, echipamente tehnologice și funcționale"]
[null,"TOTAL II (fara TVA)",null,null,null,null,null,{"$f":"H331","v":0},{"$f":"I331","v":0}]
["    III - PROCURARE"]
[10,"Utilaje si echipamente tehnologice "]
[11,"Utilaje şi echipamente de transport, utilaje şi echipamente fară\nmontaj, mijloace de transport, alte achiziţii specifice"]
[12,"Dotări"]
[null,"TOTAL III (fara TVA)",null,null,null,null,null,{"$f":"SUM(H334:H336)","v":0},{"$f":"SUM(I334:I336)","v":0}]
[null,"TOTAL ( TOTAL I + TOTAL II +TOTAL III) fără TVA",null,null,null,null,null,{"$f":"H329+H332+H337","v":0},{"$f":"I329+I332+I337","v":0}]
[null,"TVA aferent cheltuielilor eligibile şi neeligibile"]
[null,"TOTAL DEVIZ PE OBIECT (inclusiv TVA)",null,null,null,null,null,{"$f":"H338+I338+H339+I339","v":0}]
["*) Se înscrie denumirea obiectului de construcţie sau intervenţie"]
["ADAUGA DEVIZ, DACA E CAZUL."]
[]
["Situaţia achiziţiilor publice efectuate până la depunerea Cererii de finanţare cu respectarea condiţiilor de eligibilitate a cheltuielilor prevăzute în fişa masurii M4/6B"]
["Nr.crt","Obiectul contractului",null,"Valoarea reala LEI","Procedura aplicata",null,"Data începerii procedurii (zz/ ll/aaaa)","Data finalizarii procedurii (zz/ ll/aaaa)","Stadiul procedurii"]
[1,"Servicii de consultanta"]
[2,"Elaborarea Studiului de Fezabilitate"]
[3]
["Declar pe proprie raspundere ca informatiile din tabelul  de mai sus sunt corecte si ca la atribuirea contractelor de servicii mentionate au fost respectate prevederile legislatiei nationale in vigoare privind procedura de achizitie publica"]
[]
[]
["Reprezentant legal, Nume/Prenume"]
[]
["Semnatura si ştampila"]
[]
[]
[null,null,null,null,null,null,"Anexa A3 - HG 28/2008"]
[null,null,null,null,null,null,null,"august 2017"]
["Deviz capitolul 2- Cheltuieli pentru asigurarea utilităţilor necesare obiectivului - EURO"]
["Nr.crt","Specificatie",null,null,null,null,null,"Valoare \neligibilă\n","Valoare\n neeligibilă\n"]
[1,"Alimentare cu apa"]
[2,"Canalizare"]
[3,"Alimentare cu gaze naturale"]
[4,"Alimentare cu agent termic"]
[5,"Alimentare cu energie electrica"]
[6,"Telecomunicatii (telefonie, radio-tv, etc.)"]
[7,"Alte tipuri de retele exterioare"]
[9,"Drumuri de acces"]
["TOTAL DEVIZ CAPITOLUL 2",null,null,null,null,null,null,{"$f":"SUM(H361:H368)","v":0},{"$f":"SUM(I361:I368)","v":0}]
["Valoare TVA aferentă cheltuielilor eligibile și neeligibile"]
["         TOTAL DEVIZ CAPITOLUL 2 (inclusiv TVA)",null,null,null,null,null,null,{"$f":"H369+I369+H370+I370","v":0}]
[]
["Deviz capitolul 5 - Alte cheltuieli - EURO"]
["Nr.crt","Specificatie",null,null,null,null,null,"Valoare \neligibilă\n","Valoare\n neeligibilă\n"]
[5.0999999999999996,"Organizarea de santier",null,null,null,null,null,{"$f":"H376+H377","v":0},{"$f":"I376+I377","v":0}]
[null,"5.1.1 Lucrări de construcții și instalații aferente organizării de șantier"]
[null,"5.1.2 Cheltuieli conexe organizării de șantierului"]
[5.2,"Comisioane, taxe",null,null,null,null,null,{"$f":"H380+H381+H384","v":0},{"$f":"SUM(I379:I384)","v":0}]
[null,"comisionul băncii finanţatoare"]
[null,"cota aferentă Inspectoratului de Stat în Construcţii pentru\ncontrolul calităţii lucrărilor de construcţii"]
[null,"cota pentru controlul statului în amenajarea teritoriului,\nurbanism şi pentru autorizarea lucrărilor de construcţii"]
[null,"prime de asigurare din sarcina autorităţii contractante"]
[null,"alte cheltuieli de aceeaşi natură, stabilite în condiţiile legii"]
[null,"cota aferentă Casei Sociale a Constructorilor"]
[5.3,"Cheltuieli diverse si neprevazute"]
["TOTAL DEVIZ CAPITOLUL 5",null,null,null,null,null,null,{"$f":"H375+H378","v":0},{"$f":"I375+I378+I385","v":0}]
["Valoare TVA aferenta cheltuielilor eligibile si neeligibile"]
["TOTAL DEVIZ CAPITOLUL 5 (inclusiv TVA)",null,null,null,null,null,null,{"$f":"H386+I386+H387+I387","v":0}]
[]
["Adauga anexa 3, daca e cazul."]

{"sheet":"Sectiunile D-F","index":2,"n_rows":232,"n_cols":9,"rows_kept":232,"cut":false,"hidden":false,"merged":[[132,10,132,15],[133,10,133,15],[150,7,151,8],[150,0,151,5],[146,6,147,6],[141,0,141,8],[150,6,151,6],[146,0,147,5],[148,0,149,5],[144,6,145,6],[144,7,145,8],[144,0,145,5],[148,6,149,6],[148,7,149,8],[129,0,133,8],[130,10,130,18],[131,10,131,15],[140,0,140,8],[134,0,134,8],[135,0,135,8],[146,7,147,8],[142,7,143,8],[142,6,143,6],[142,0,143,5],[152,0,152,8],[157,2,158,2],[108,0,108,4],[108,6,108,7],[109,0,110,4],[109,6,110,7],[119,0,122,2],[123,0,123,7],[164,0,165,5],[164,6,165,6],[124,3,124,7],[117,0,117,8],[118,0,118,8],[119,3,119,7],[120,3,120,7],[121,3,121,7],[122,3,122,7],[125,3,125,7],[124,0,125,2],[126,3,126,7],[128,3,128,7],[126,0,128,2],[127,3,127,7],[136,0,136,7],[155,3,156,3],[157,8,158,8],[155,2,156,2],[186,0,186,8],[184,0,184,6],[183,0,183,8],[168,6,169,6],[153,4,154,6],[153,7,154,8],[160,7,163,8],[160,0,163,5],[164,7,165,8],[179,0,179,5],[176,7,176,8],[177,7,177,8],[178,7,178,8],[179,7,179,8],[180,0,180,6],[180,7,180,8],[187,0,187,8],[231,0,231,7],[212,0,212,1],[212,2,212,8],[215,1,215,3],[215,4,215,8],[216,0,216,8],[192,0,192,1],[192,3,192,8],[229,3,229,4],[217,0,224,8],[229,5,229,6],[229,0,229,2],[196,7,196,8],[198,7,198,8],[200,1,200,2],[200,4,200,5],[226,0,226,1],[226,2,226,6],[196,4,196,5],[214,4,214,5],[214,6,214,8],[211,0,211,1],[211,2,211,8],[193,0,193,2],[194,4,194,5],[194,7,194,8],[196,1,196,2],[202,0,202,5],[202,6,202,8],[200,7,200,8],[208,7,208,8],[206,5,206,6],[8,7,8,8],[9,0,9,3],[11,0,11,3],[12,0,12,3],[19,0,19,3],[20,0,20,3],[27,0,27,3],[28,0,28,3],[210,1,210,8],[204,2,204,5],[206,0,206,3],[189,0,189,1],[189,3,190,8],[185,2,185,6],[157,7,158,7],[157,4,158,6],[155,4,156,6],[166,7,167,8],[157,3,158,3],[157,0,158,1],[175,0,175,5],[175,7,175,8],[176,0,176,5],[177,0,177,5],[29,0,29,3],[30,0,30,3],[31,0,31,3],[21,0,21,3],[22,0,22,3],[23,0,23,3],[25,0,25,3],[26,0,26,3],[2,0,2,3],[3,1,3,3],[4,1,4,3],[5,0,5,8],[6,0,6,6],[7,0,7,3],[10,0,10,3],[17,0,17,3],[18,0,18,3],[13,0,13,3],[14,0,14,3],[15,0,15,3],[16,0,16,3],[8,0,8,3],[24,0,24,3],[8,4,8,6],[53,0,53,4],[53,5,53,8],[46,1,46,7],[32,0,32,3],[33,0,33,3],[35,0,35,3],[36,0,36,3],[37,0,37,3],[38,0,38,3],[39,0,39,3],[40,0,40,3],[43,0,43,8],[48,0,48,8],[49,0,50,8],[52,0,52,3],[41,0,41,3],[34,0,34,3],[45,0,45,4],[54,0,74,8],[75,0,77,8],[78,0,79,8],[80,0,82,8],[83,0,83,8],[103,0,104,8],[84,0,85,8],[86,0,86,8],[88,0,89,8],[90,0,90,8],[91,0,92,8],[97,0,99,8],[93,0,95,8],[96,0,96,8],[100,0,102,8],[137,0,137,7],[138,0,138,7],[181,0,181,8],[173,7,173,8],[174,7,174,8],[171,0,171,5],[171,7,171,8],[172,0,172,5],[173,0,173,5],[174,0,174,5],[172,7,172,8],[178,0,178,5],[160,6,163,6],[168,0,169,5],[159,0,159,8],[170,0,170,8],[168,7,169,8],[155,7,156,7],[155,8,156,8],[166,6,167,6],[166,0,167,5],[153,0,154,1],[155,0,156,1],[153,2,154,3]]}
[]
[]
["D. ALTE INFORMAȚII :"]
[null,"Programarea proiectului: "]
[null,"Numar luni de implementare",null,null,"\u001e"]
["E. LISTA DOCUMENTELOR ANEXATE PROIECTELOR AFERENTE  MĂSURII M4/6B, \npentru actiuni corespunzatoare sub-masurii 7.6, PNDR 2014-2020                            \nOPIS DOCUMENTE"]
["Documentele se vor anexa cererii de finanțare în ordinea de mai jos:"]
["Lista documente",null,null,null,"Obligatoriu pentru toate proiectele","Obligatoriu, \ndacă proiectul impune","\nPAGINA \nde la-până la\n","Obligatoriu \npentru toate \nproiectele","Obligatoriu, \ndacă proiectul impune"]
["ETAPA:",null,null,null,"        DEPUNERE",null,null,"CONTRACTARE"]
["1.1 Studiu de Fezabilitate/Documentaţie de Avizare pentru Lucrări de Intervenţii, întocmite, avizate și verificate în condițiile legii și însoțite de toate studiile, expertizele, avizele și acordurile specifice fiecărui tip de investiție, conform reglementărilor legale în vigoare."]
["1.2 Memoriu justificativ (în cazul dotărilor, pentru investiții fără lucrări de construcții-montaj). "]
["2. Certificat de Urbanism, completat și eliberat conform reglementărilor legale în vigoare și aflate în termenul de valabilitate la data depunerii cererii de finanțare."]
["3.1 Inventarul bunurilor ce aparţin domeniului public al comunei/comunelor, întocmit conform legislaţiei în vigoare privind proprietatea publică şi regimul juridic al acesteia, atestat prin Hotărâre a Guvernului şi publicat în Monitorul Oficial al României.\nşi \nHotărârea Consiliului Local privind aprobarea modificărilor şi / sau completărilor la inventarul bunurilor ce aparţin domeniului public al comunei, cu respectarea prevederilor Art. 115 alin (7) din Legea nr.215/ 2001, republicată, cu modificările şi completările ulterioare, a administraţiei publice locale, adică să fi fost supusă controlului de legalitate al Prefectului, în condiţiile legii.\n"]
["3.2Documente doveditoare ale dreptului de proprietate /administrare al ONGurilor,\nUnităților de cult, Persoanelor fizice autorizate / societăților comerciale\npe o perioada de 10 ani, asupra bunurilor imobile la care se vor efectua lucrări\nconform cererii de finanţare;"]
["4 Document care să ateste ca solicitantul a depus documentaţia la ANPM:"]
["4.1 Clasarea notificării                                                   \nsau"]
["4.2 Decizia etapei de încadrare, ca document final (prin care se precizează că proiectul nu se supune evaluării impactului asupra mediului şi nici evaluării adecvate)      \nsau"]
["4.3 Acord de mediu în cazul în care se impune evaluarea impactului preconizat asupra mediului                  \nsau"]
["4.4 Acord de mediu în cazul evaluării impactului asupra mediului și de evaluare adecvată (dacă este cazul)."]
["4.5 Aviz Natura 2000 pentru proiectele care  impun doar evaluare adecvată."]
["5.1 Hotărârea Consiliului Local pentru implementarea proiectului, cu referire la\nurmătoarele puncte (obligatorii):\n• necesitatea şi oportunitatea investiţiei;\n• lucrările sunt prevăzute în bugetul/bugetele local/e pentru perioada de realizare a\ninvestiţiei;\n• angajamentul de a suporta cheltuielile de întreţinere şi / sau reparare a investiţiei pe o perioadă de minimum 5 ani de la data efectuării ultimei plăți;\n• caracteristici tehnice (lungimi, arii, volume, capacităţi etc.)\n• nominalizarea reprezentantului legal al comunei pentru relaţia cu GAL “CONFLUENȚE MOLDAVE”/ AFIR în derularea proiectului\n• detalierea activităţilor sociale/culturale desfășurate în ultimele 12 luni, anterioare datei depunerii Cererii de finanţare.\n• angajamentul de asigurare a cofinanțării, dacă este cazul. \n• se angajează să asigure funcționarea la parametri proiectați și întreținerea investiției, pe o perioadă de minim 5 ani, de la ultima tranșă de plată; \nsau\n5.2 Hotărârea Adunării Generale pentru implementarea proiectului specific\nfiecărei categorii de solicitanți cu referire la însuşirea / aprobarea de către\nONG, Unitate de cult, PFA / Societate Comercială a\nurmătoarelor (condiții obligatorii):\n• necesitatea şi oportunitatea investiţiei;\n• lucrările sunt prevăzute în bugetul solicitantului pentru perioada de realizare a investiţiei; \n• angajamentul de a suporta cheltuielile de întreţinere şi / sau reparare a investiţiei pe o perioadă de minimum 5 ani de la data efectuării ultimei plăți;\n• caracteristici tehnice (lungimi, arii, volume, capacităţi etc.)\n• nominalizarea reprezentantului legal al solicitantului pentru relaţia cu GAL“CONFLUENȚE MOLDAVE”/ AFIR în derularea proiectului;\n• detalierea activităţilor sociale/culturale desfășurate în ultimele 12 luni, anterioare datei depunerii Cererii de finanţare.\n• angajamentul de asigurare a cofinanțării, dacă este cazul. \n• se angajează să asigure funcționarea la parametri proiectați și întreținerea investiției, pe o perioadă de minim 5 ani, de la ultima tranșă de plată; "]
["6.1 Certificatul de înregistrare fiscală"]
["6.2 Încheiere privind înscrierea în Registrul Asociațiilor și Fundațiilor, rămasă definitivă / Certificat de înregistrare în Registrul Asociațiilor și Fundațiilor"]
["6.2.1 Actul de înfiinţare şi statutul ONG\nSau\n6.2.2 Actul de înfiinţare şi statutul Aşezământului Monahal (Mânăstire , Schit\nsau Metoc)\nSau\n6.2.3 Actul Constituiv, Certificatul de înregistrare a firmei, Hotărârea tribunalului de pe lâgă ONRC, Certificat constatator eliberat de ONRC"]
["7. Document emis de bancă/trezorerie care să conțină datele de\nidentificare ale băncii/trezoreriei și ale contului aferent proiectului pentru care se solicită finanțare din PNDR (denumirea, adresa băncii/ trezoreriei, codul IBAN al contului în care se derulează operațiunile cu AFIR). "]
["8. Certificate care să ateste lipsa datoriilor fiscale restante și graficul de\nreeșalonare a datoriilor către bugetul consolidat (daca este cazul)."]
["9. Certificatul de cazier judiciar"]
["10. Raport asupra utilizării programelor de finanţare nerambursabilă întocmit de solicitant (va cuprinde amplasamentul, obiective, tip de investiție, lista cheltuielilor eligibile, costurile și stadiul proiectului, perioada derulării contractului), pentru solicitantii care au mai beneficiat de finanțare nerambursabilă începând cu anul 2007, pentru aceleași tipuri de investiții"]
["11.1 Notificare privind conformitatea proiectului cu condiţiile de igienă şi sănătate publică\nsau"]
["11.2 Notificare că investiţia nu face obiectul evaluării condiţiilor de igienă şi sănătate publică, dacă este cazul."]
["12. Declarația pe propria răspundere din care să reiasă că după realizarea\ninvestiției din patrimoniul cultural de clasă B, aceasta va fi înscrisă într-o rețea\nde promovare turistică"]
["13. Avizul emis de catre Ministerul Culturii sau, dupa caz, de catre serviciile\npublice deconcentrate ale Ministerului Culturii, respectiv Directiile Judetene\npentru Cultura pe raza carora sunt amplasate obiectivele, conform Legii\n422/2001 privind protejarea monumentelor istorice, republicata, cu modificarile\nsi completarile ulterioare, care sa confirme faptul ca obiectivul propus spre\nfinantare face parte din patrimoniul cultural de interes local - grupa B si ca se\npoate interveni asupra lui (documentatia este adecvata)"]
["14. Dovada eliberata de Muzeul judetean, prin care se certifica verificarea documentara si pe teren, daca este cazul, asupra unor interventii antropice cu caracter arheologic in perimetrul aferent proiectului propus pentru finantare nerambursabila (OG 43/2000, republicata, cu modificarile si completarile ulterioare)"]
["15. Extrasul din strategie, care confirma daca investiția este în corelare cu orice strategie de dezvoltare națională / regional / județeană / locală aprobată, corespunzătoare domeniului de investiții precum și copia hotărârii de aprobare a strategiei."]
["16. Document eliberat de Primărie/ Centrul eparhial ( în cazul Unităţilor de Cult)/\nComitet director al ONG/Societate comercială, din care să rezulte numărul de\nactivităţi desfășurate ce au avut loc în ultimele 12 luni, anterioare datei\ndepunerii Cererii de Finanţare"]
["16. Proiectul tehnic va respecta prevederile legale în vigoare privind conţinutului-cadru al documentaţiei tehnico-economice aferente investiţiilor publice, precum şi a structurii şi metodologiei de elaborare a devizului general pentru obiective de investiţii şi lucrări de intervenţii."]
["17. Copia Documentului de identitate al reprezentantului legal al beneficiarului."]
["18. Dovada achitarii integrale a datoriei față de AFIR, inclusiv dobânzile și majorările de întârziere, dacă este cazul"]
["19. Alte documente justificativein functie de proiect si de lista de documente din GS\n (Se vor specifica dupa caz)"]
[]
[]
[]
[]
["F. DECLARAŢIE PE PROPRIA RĂSPUNDERE A SOLICITANTULUI"]
[]
["Prin această declaraţie solicitantul"]
[null,{"$f":"'Sectiunile A-C'!A38:I39","v":{"$error":"#VALUE!"}}]
[]
["care solicită asistență financiară nerambursabilă prin programul FEADR pentru proiectul intitulat"]
[{"$f":"'Sectiunile A-C'!A41","v":0}]
[]
[]
["prin reprezentant legal"]
[{"$f":"'Sectiunile A-C'!A144","v":0},null,null,null,null,{"$f":"'Sectiunile A-C'!C144","v":0}]
["cunoscând prevederile legii penale cu privire la falsul în declarații:\n1. Declar că proiectul propus asistenței financiare nerambursabile FEADR nu beneficiază de altă finanțare din programe de finanțare nerambursabilă.\nDe asemenea mă angajez ca în cazul în care proiectul va fi selectat pentru finanțare FEADR, nu voi depune acest proiect la nici un alt program de finanțare nerambursabilă la care proiectul poate fi în întregime sau parțial eligibil pentru asistență.\n2. Declar că îndeplinesc condițiile de eligibilitate prevăzute în fișa măsurii și Ghidul Solicitantului și mă angajez să le respect pe perioada de valabilitate a contractului de finanțare și monitorizare a investiției, inclusiv criteriile de selecție pentru care proiectul a fost punctat.\n3. Declar că toate informațiile din prezenta cerere de finanțare și din documentele anexate sunt corecte și mă angajez să respect condițiile cerute în reglementările referitoare la prezentul program și pe cele legate de proiectul anexat și să furnizez periodic, la cerere, documentele justificative necesare.\n4. Declar pe propria răspundere că orice modificări aduse dreptului de proprietate sau de folosință vor fi notificate AFIR în termen de trei zile de la data producerii lor.\n5.   Declar că eu și organizația mea (UAT , Unitate de cult, PFA , SC sau ONG) nu ne aflăm într-unul din următoarele cazuri:\nAcuzat din cauza unei greșeli privind conduita profesională având ca soluție finală res judicata (împotriva căreia nici un apel nu este posibil)\nVinovat de grave deficiențe de conduită profesională dovedite prin orice mijloace pe care Agenția le poate justifica.               Vinovat de faptul că nu am prezentat informaţiile cerute de autoritatea contractantă ca o condiţie de participare la licitaţie sau contractare\nÎncălcarea prevederilor contractuale prin care nu mi-am îndeplinit obligațiile contractuale în legătură cu un alt contract cu Agenția sau alte contracte finanțate din fonduri comunitare.\nÎncercarea de a obține informații confidențiale sau de influențare a Agenției în timpul procesului de evaluare a proiectului și nu voi face presiuni la adresa evaluatorului. "]
[]
[]
[]
[]
[]
[]
[]
[]
[]
[]
[]
[]
[]
[]
[]
[]
[]
[]
[]
[]
["6.                Declar că organizația pe care o reprezint ARE datorii către instituții de credit și/sau instituții financiare nebancare. În acest sens, atașez Graficul de rambursare a datoriilor și document de la bancă pentru certificarea respectării graficului de rambursare.\n\n"]
[]
[]
["                    Declar că organizația pe care o reprezint NU are datorii către instituții de credit şi/sau instituții financiare nebancare."]
[]
["7.Declar pe propria răspundere ca în cazul în care nu respect oricare din punctele prevăzute în această declarație proiectul să devină neeligibil în baza criteriului \"Eligibilitatea solicitantului\" sau contractul să fie reziliat.\n"]
[]
[]
["8.  Declar pe propria răspundere că:"]
["               Nu sunt înregistrat în scopuri TVA și că mă angajez să notific Agenției orice modificare a situatiei privind înregistrarea ca plătitor de TVA, în maximum 10 (zece) zile de la data înregistrării în scopuri TVA."]
[]
["               Sunt înregistrat în scopuri de TVA (certificat de înregistrare fiscală în scopuri de TVA)."]
[]
["9.  Declar pe propria răspundere că nu am înscrieri care privesc sancțiuni economico-financiare în cazierul judiciar pe care mă oblig să îl depun la încheierea contractului de finanțare."]
[]
["10.  Declar pe propria raspundere că nu am fapte înscrise în cazierul fiscal."]
["11.  Declar pe propria răspundere că toate cheltuielile neeligibile vor fi suportate de solicitant și că acestea vor fi realizate până la finalizarea proiectului."]
[]
["13.  Declar pe proprie raspundere ca voi achita integral datoria fata de AFIR, inclusiv dobanzile si majorarile de intarziere pana la semnarea contractului de finantare (pentru solicitantii inregistrati in registrul debitorilor AFIR atat pentru programul SAPARD cat si pentru FEADR)."]
[]
[]
["14. Declar pe propria răspundere ca nu sunt în insolventă sau incapacitate de plată."]
["12.  Ma angajez ca in termenul precizat in Ghidul Solicitantului, de la data primirii \"Notificarii benficiarului privind selectarea cererii de finantare si semnarea contractului de finantare\", sa asigur si sa prezint documentele obligatorii mentionate in Ghidul solicitantului pentru contractarea proiectului."]
[]
[]
["15. Declar pe propria răspundere că în conformitate cu termenul menţionat în notificarea AFIR privind selecţia cererii de finanţare, voi obţine şi depune, înainte de semnarea contractului de finanţare, documentul emis de ANPM menţionat în secţiunea E punctul 4 a cererii de finanţare."]
[]
[]
["16. Accept publicarea pe site-ul AFIR si GAL CONFLUENȚE MOLDAVE a datelor mele, cu respectarea legislaţiei naţionale şi europene privind transparenţa."]
[]
[]
[]
[]
["Semnătura reprezentant legal şi ştampila",null,null,null,null,null,"Data"]
[]
[]
[]
[]
[]
[]
[]
[]
["Anexa INDICATORI DE MONITORIZARE - MASURA ECHIVALENTA PNDR"]
["Masura 7 - Servicii de bază și reînnoirea satelor în zonele rurale                                                             Sub-măsura 7.2 - Investiții în crearea și modernizarea infrastructurii de bază la scară mică"]
["1. Tipul de sprijin",null,null,"a. Restaurarea, conservarea și dotarea clădirilor/monumentelor din patrimoniul cultural imobil de interes local de clasă B"]
[null,null,null,"b. Construcția, extinderea și/sau modernizarea drumurilor de acces ale așezămintelor monahale de clasă B"]
[null,null,null,"c. Restaurarea, conservarea și/sau dotarea așezămintelor monahale de clasă B"]
[null,null,null,"d. Modernizarea, renovarea și/sau dotarea căminelor culturale"]
["2. Număr locuitori deserviţi"]
["3. Zona montana",null,null,"da"]
[null,null,null,"nu"]
["4. Contribuie la Prioritatea 1",null,null,"M01 - Transfer de cunoştinţe şi acţiuni de informare"]
[null,null,null,"M02 - Servicii de consiliere"]
[null,null,null,"M16 - Cooperare"]
["Indic. nr. 1 - se va bifa doar o singura categorie/ categoria majoritara\nIndic. nr. 2 - se va completa numărul locuitorilor deserviţi\nIndic. nr. 3 - se va completa cu \"DA\" în cazul în care investiţia este amplasată în zonă montană (cf. Listei UAT din Zonele Montane); în\ncaz contrar se va completa \"NU\"\nIndic. nr. 4 - se va completa din momentul demararii M01, M02, respectiv M16, cu bifa în dreptul măsurii corespunzătoare, dacă va fi\ncazul.\nPentru indicatorii de tip numeric care nu fac obiectul investitiei sa va completa valoarea zero."]
[]
[]
[]
[]
["Anexa INDICATORI LOCALI DE MONITORIZARE"]
["MASURA M4/6B GAL CONFLUENȚE MOLDAVE"]
["1.   Locuri de muncă create - indicator specific Leader "]
["2.   Populatia neta care beneficiaza de servicii/ infrastructura imbunatatita (DI 6B) – populatia din teritoriu."]
["3.   Cheltuielile publice totale (DI 1A)"]
[]
[]
["FACTORI DE RISC"]
["   I1. Valoarea sprijinului public nerambursabil (EURO)",null,null,null,null,null,null,"Punctaj obţinut"]
[]
["• 400.001 > 500.000",null,null,null,null,null,null,5]
[]
["• 200.001 > 400.000",null,null,null,null,null,null,4]
[]
["• 100.001 > 200.000",null,null,null,null,null,null,3]
[]
["• 5.000 ≤ 100.000",null,null,null,null,null,null,1]
[]
["    I2. Complexitatea investitiei"]
["Solicitanți Publici",null,"Punctaj obţinut",null,"Alte tipuri",null,null,"Punctaj obţinut"]
[]
["• Modernizări cu C+M",null,null,5,"• Modernizări cu C+M",null,null,null,5]
[]
["• Modernizări fara  C+M (dotari)",null,null,3,"• Modernizări fara  C+M (dotari)",null,null,null,3]
[]
[]
["I3. Riscul proiectului d.p.d.v. al raportului procentual între Cheltuielile suportate de solicitant si Valoarea ajutorului nerambursabil                                                 \n          Total valoare proiect (fără TVA)\n% = --------------------------------------------------------- x 100\n       Valoarea ajutorului nerambursabil solicitat\n",null,null,null,null,null,null,"Punctaj obţinut"]
[]
[]
[]
["• > 110%",null,null,null,null,null,null,5]
[]
["• între 101 si 110%",null,null,null,null,null,null,3]
[]
["• = 100%",null,null,null,null,null,null,1]
[]
[]
["I4. Capacitatea solicitantului de a manageria proiectul, experiența în implementarea proiectelor finanțate din fonduri comunitare",null,null,null,null,null,null,"Punctaj obtinut"]
["• Solicitant care nu a implementat un alt proiect SAPARD/FEADR, comunitar sau nu a obținut asistență financiară nerambursabilă din partea altui instrument financiar.",null,null,null,null,null,null,5]
["• Solicitant care are experiența implementării și care a finalizat un proiect SAPARD/FEADR, comunitar sau obținut asistență financiară nerambursabilă din partea altui instrument financiar",null,null,null,null,null,null,3]
["• Solicitant care are experiența implementării și care a finalizat un proiect SAPARD/FEADR și un alt proiect comunitar sau obținut din asistența financiară nerambursabilă din partea altui instrument financiar",null,null,null,null,null,null,1]
["I5. Tipul solicitantului",null,null,null,null,null,null,"Punctaj obtinut"]
["Comune",null,null,null,null,null,null,5]
["ONG",null,null,null,null,null,null,4]
["Unitati de cult",null,null,null,null,null,null,3]
["Alte tipuri",null,null,null,null,null,null,1]
["TOTAL "]
["Pentru selectarea proiectelor ce vor fi verificate prin sondaj, se va determina riscul fiecărui proiect folosind cei 5 factori de risc (I1, I2, I3, I4 și I5).\nFactorii de risc sunt adaptați conform specificului Sub-Măsurii 7.6 din PNDR 2014-2020.\nPentru fiecare proiect se va determina punctajul fiecărui factor de risc pe o scară de la 1 la 5."]
[]
["Codul unic de înregistrare APIA"]
["În cazul în care nu aveți un cod unic de înregistrare APIA, completați acest formular"]
[null,null,"FORMULAR"]
["de înscriere în Registrul unic de identificare pentru solicitanţii de finanţare prin măsurile"]
["Programului naţional de dezvoltare rurală 2014 - 2020"]
[]
["Denumire solicitant:"]
[]
[]
["Categorie Solicitant:"]
["Sediul / Adresa"]
["Ţara ",null,null,"Judeţul",null,null,"ORASUL"]
[]
["comuna",null,null,"satul",null,null,"strada"]
[]
["numar",null,"bloc",null,"etaj",null,"cod postal"]
[]
["nr. Telefon",null,null,"fax",null,null,"email"]
[]
["Număr de înregistrare în registrul comerțului/Registrul asociațiilor și fundațiilor"]
[]
["CUI / CIF"]
[]
["Cod CAEN pentru activitatea principală"]
[]
["Cod CAEN pentru activitatea secundară pentru care se solicită înregistrarea în Registrul unic de identificare"]
[]
["Cod IBAN"]
["deschis la Banca"]
["Sucursala / Agenție"]
[]
["Prin reprezentant legal, doamna/domnul"]
["cu CNP",null,null,null,", solicit înscrierea în Registrul unic de îdentificare "]
["Agenţia de Plăţi şi Intervenţie pentru Agricultură."]
["Am luat la cunoştinţă că orice modificare a informaţiilor de mai sus trebuie furnizată către APIA în termen de maximum 10 zile lucrătoare de la producerea acestora.\nDeclar pe propria răspundere că cele de mai sus sunt conforme cu realitatea.\nSunt de acord ca datele din cerere să fie introduse în baza de date a Sistemului Integrat de Administrare şi Control, procesate şi verificate în vederea înscrierii în Registrul unic de identificare şi transmise autorităţilor responsabile în vederea elaborării de studii statistice şi de evaluări economice, în condiţiile Legii nr. 677-2001 pentru protecţia persoanelor cu privire la prelucrarea datelor cu caracter personal şi libera circulaţie a acestor date, cu modificarile şi completările ulterioare.\n"]
[]
[]
[]
[]
[]
[]
[]
[]
["Reprezentant legal",null,null,null,null,null,null,"Data"]
[]
[]
["Numele şi prenumele"]
[]
["Semnătura ................................................................................................................................."]